bitfinex-derivatives/quotes_BTCF0:USTF0_20251009
["timestamp","ask_amount","ask_price","bid_price","bid_amount"]
[1760036901214,0.11015,120910.0,120900.0,3.46367521]
[1760036901615,0.35840303,120910.0,120900.0,0.14876915]
[1760036901915,1.02840303,120910.0,120900.0,3.11468325]
[1760036902107,1.02840303,120910.0,120900.0,3.11368325]
[1760036902311,1.02840303,120910.0,120900.0,3.36193628]
[1760036902714,1.02840303,120910.0,120900.0,2.46166218]
[1760036902912,1.02840303,120910.0,120900.0,3.31696485]
[1760036903215,1.02840303,120910.0,120900.0,3.31596485]
[1760036904722,0.78015,120910.0,120900.0,3.31596485]
[1760036905121,1.02840303,120910.0,120900.0,3.31596485]
[1760036905321,1.02840303,120910.0,120900.0,3.21242218]
[1760036907614,1.02840303,120910.0,120900.0,2.46066218]
[1760036907819,0.71471,120910.0,120900.0,2.70891521]
[1760036908122,0.005,120910.0,120900.0,3.92473788]
[1760036908823,0.005,120910.0,120900.0,3.82119521]
[1760036909521,0.04471,120910.0,120900.0,3.82219521]
[1760036909923,0.04471,120910.0,120900.0,3.82319521]
[1760036910119,0.04471,120910.0,120900.0,3.82419521]
[1760036910615,0.04471,120910.0,120900.0,3.07271521]
[1760036910820,0.04471,120910.0,120900.0,3.82419521]
[1760036913819,0.04471,120910.0,120900.0,3.07271521]
[1760036914028,0.1085,120910.0,120900.0,3.32744915]
[1760036914228,0.1085,120910.0,120900.0,3.82395521]
[1760036914927,0.1085,120910.0,120900.0,3.82295521]
[1760036915129,0.1085,120910.0,120900.0,3.82395521]
[1760036915324,0.1085,120910.0,120900.0,3.82295521]
[1760036915520,0.04471,120910.0,120900.0,3.82295521]
[1760036916332,0.35675303,120910.0,120900.0,0.14976915]
[1760036916529,0.35675303,120910.0,120900.0,3.21478218]
[1760036917030,0.1085,120910.0,120900.0,3.21478218]
[1760036917923,0.1085,120910.0,120900.0,3.36225628]
[1760036918127,0.1085,120910.0,120900.0,3.36325628]
[1760036918332,0.1085,120910.0,120900.0,3.36125628]
[1760036918527,0.1085,120910.0,120900.0,3.60950931]
[1760036919134,0.1085,120910.0,120900.0,3.60850931]
[1760036919432,0.1085,120910.0,120900.0,3.44398558]
[1760036922736,0.1085,120910.0,120900.0,3.29551148]
[1760036926129,0.1085,120910.0,120900.0,3.29451148]
[1760036928140,0.1085,120910.0,120900.0,2.96352915]
[1760036928440,0.1085,120910.0,120900.0,3.29451148]
[1760036928640,0.04471,120910.0,120900.0,3.29451148]
[1760036929444,0.04471,120910.0,120900.0,3.29551148]
[1760036929943,1.27903883,120910.0,120900.0,0.06610585]
[1760036930148,1.57903883,120910.0,120900.0,0.14876915]
[1760036930342,1.57903883,120910.0,120900.0,0.81666585]
[1760036930646,1.57903883,120910.0,120900.0,0.14876915]
[1760036930844,1.57903883,120910.0,120900.0,0.89832915]
[1760036931542,1.59115005,120910.0,120900.0,0.89832915]
[1760036931843,1.59115005,120910.0,120900.0,0.14776915]
[1760036932034,1.59115005,120910.0,120900.0,0.89832915]
[1760036933947,1.26016772,120910.0,120900.0,0.89832915]
[1760036934145,1.57903883,120910.0,120900.0,0.14776915]
[1760036934334,1.57903883,120910.0,120900.0,0.89828915]
[1760036934541,1.57903883,120910.0,120900.0,0.14776915]
[1760036934749,1.57903883,120910.0,120900.0,0.81562585]
[1760036935638,1.57903883,120910.0,120900.0,0.91931765]
[1760036936945,1.57903883,120910.0,120900.0,1.00198095]
[1760036937140,1.57903883,120910.0,120900.0,1.00182095]
[1760036937445,1.57903883,120910.0,120900.0,0.91915765]
[1760036939045,1.57903883,120910.0,120900.0,1.00182095]
[1760036940345,1.57903883,120910.0,120900.0,0.25146095]
[1760036940640,1.57903883,120910.0,120900.0,1.00170095]
[1760036941035,0.06471,120910.0,120900.0,0.58244328]
[1760036941241,0.06471,120910.0,120900.0,1.33268328]
[1760036941441,0.1273665,120910.0,120900.0,1.37774558]
[1760036941638,0.32471,120910.0,120900.0,1.37774558]
[1760036942149,0.13471,120910.0,120900.0,1.22927148]
[1760036943146,0.4169565,120910.0,120900.0,1.22927148]
[1760036944145,0.1043,120910.0,120900.0,0.47875148]
[1760036944347,0.10471,120910.0,120900.0,1.22915148]
[1760036944541,0.10471,120910.0,120900.0,0.47875148]
[1760036944740,0.2469565,120910.0,120900.0,0.47875148]
[1760036944943,0.2469565,120910.0,120900.0,1.22915148]
[1760036945144,0.1869565,120910.0,120900.0,1.22915148]
[1760036946341,0.1043,120910.0,120900.0,1.22915148]
[1760036946544,0.1869565,120910.0,120900.0,1.22915148]
[1760036946745,0.3769565,120910.0,120900.0,1.22915148]
[1760036947743,0.3769565,120910.0,120900.0,1.33286377]
[1760036948143,0.2943,120910.0,120900.0,1.33286377]
[1760036948537,0.23471,120910.0,120900.0,1.33286377]
[1760036948943,0.04471,120910.0,120900.0,1.33286377]
[1760036949144,0.005,120910.0,120900.0,1.69342377]
[1760036949350,0.005,120910.0,120900.0,0.83955148]
[1760036949559,0.005,120910.0,120900.0,1.98971148]
[1760036950348,0.005,120910.0,120900.0,2.13918558]
[1760036950750,0.10264,120930.0,120910.0,0.0826547]
[1760036950950,0.265,120930.0,120920.0,0.92290603]
[1760036951153,0.265,120930.0,120920.0,1.67322603]
[1760036953450,0.265,120930.0,120920.0,1.52463193]
[1760036953650,0.30201,120930.0,120920.0,1.52463193]
[1760036954153,0.30201,120930.0,120920.0,1.62818831]
[1760036956854,0.30201,120930.0,120920.0,3.69282831]
[1760036958449,0.265,120930.0,120920.0,3.69282831]
[1760036960257,0.30201,120930.0,120920.0,3.69238831]
[1760036960855,0.30201,120930.0,120920.0,3.69226831]
[1760036961051,0.30201,120930.0,120920.0,3.95466831]
[1760036961559,0.30201,120930.0,120920.0,3.95566831]
[1760036962857,0.3616,120930.0,120920.0,0.81040598]
[1760036963046,0.11201,120930.0,120920.0,3.95558831]
[1760036964754,0.11201,120930.0,120920.0,3.95546831]
[1760036965561,0.11201,120930.0,120920.0,3.69306831]
[1760036966454,0.11201,120930.0,120920.0,3.58951193]
[1760036966651,0.11201,120930.0,120920.0,3.58943193]
[1760036966855,0.005,120930.0,120920.0,3.58943193]
[1760036967360,0.04201,120930.0,120920.0,3.58939193]
[1760036969553,0.04201,120930.0,120920.0,3.58935193]
[1760036970964,0.04201,120930.0,120920.0,0.77543193]
[1760036971260,0.04201,120930.0,120920.0,3.58935193]
[1760036974964,0.005,120930.0,120920.0,3.58935193]
[1760036975862,0.005,120930.0,120920.0,3.85171193]
[1760036977364,0.04177,120930.0,120920.0,3.5207296]
[1760036977563,0.04177,120930.0,120920.0,3.85171193]
[1760036977765,0.005,120930.0,120920.0,3.69296648]
[1760036978264,0.73379233,120950.0,120930.0,0.0826428]
[1760036978265,0.40281,120950.0,120930.0,0.0826428]
[1760036978463,0.69281,120950.0,120940.0,1.31157243]
[1760036978668,0.69281,120950.0,120940.0,1.41522698]
[1760036979167,0.69281,120950.0,120940.0,1.27798446]
[1760036980664,0.75323,120950.0,120940.0,0.52850446]
[1760036980859,0.75323,120950.0,120940.0,1.27798446]
[1760036981567,0.75323,120950.0,120940.0,1.44315071]
[1760036982266,0.69281,120950.0,120940.0,1.44315071]
[1760036982467,0.69281,120950.0,120940.0,1.50984781]
[1760036983469,0.69281,120950.0,120940.0,1.40619326]
[1760036983668,0.69281,120950.0,120940.0,0.65671326]
[1760036983971,1.00130429,120950.0,120940.0,1.15807897]
[1760036984270,1.00130429,120950.0,120940.0,1.26173352]
[1760036984774,1.00130429,120950.0,120940.0,1.52413352]
[1760036986573,1.00130429,120950.0,120940.0,0.77469352]
[1760036986778,1.00130429,120950.0,120940.0,1.52413352]
[1760036987076,1.48393339,120950.0,120940.0,0.8987731]
[1760036987270,1.48393339,120950.0,120940.0,1.00251418]
[1760036988082,1.48393339,120950.0,120940.0,0.8987731]
[1760036988673,1.48393339,120950.0,120940.0,1.00252019]
[1760036990981,1.48393339,120950.0,120940.0,0.17044419]
[1760036991277,1.73200768,120950.0,120940.0,0.91984419]
[1760036991478,1.73200768,120950.0,120940.0,0.8160971]
[1760036991676,1.73200768,120950.0,120940.0,0.0666971]
[1760036991883,1.73200768,120950.0,120940.0,0.7494]
[1760036992172,1.73200768,120950.0,120940.0,0.91918616]
[1760036992377,1.73200768,120950.0,120940.0,0.16978616]
[1760036992578,1.73200768,120950.0,120940.0,0.91918616]
[1760036992971,1.73200768,120950.0,120940.0,0.16978616]
[1760036993172,1.73200768,120950.0,120940.0,0.91918616]
[1760036993379,1.48393339,120950.0,120940.0,0.91918616]
[1760036994480,1.48393339,120950.0,120940.0,0.81542286]
[1760036994681,1.73200768,120950.0,120940.0,0.81542286]
[1760036997283,1.48393339,120950.0,120940.0,0.81542286]
[1760036998678,1.48393339,120950.0,120940.0,0.06602286]
[1760036998879,0.180286,120940.0,120930.0,0.186406]
[1760036999075,1.31723458,120940.0,120930.0,0.1037633]
[1760036999279,1.96530887,120940.0,120930.0,0.1037633]
[1760036999478,1.71723458,120940.0,120930.0,0.85318494]
[1760036999777,1.71723458,120940.0,120910.0,0.1484741]
[1760036999778,0.1796796,120920.0,120910.0,0.1484741]
[1760036999983,1.66742818,120920.0,120910.0,0.1484741]
[1760037000184,0.1186065,120910.0,120900.0,0.26348798]
[1760037000483,1.35663508,120910.0,120900.0,0.81950842]
[1760037000883,1.10856079,120910.0,120900.0,0.81950842]
[1760037001084,1.10856079,120910.0,120900.0,0.31814271]
[1760037001284,1.10856079,120910.0,120900.0,1.06758271]
[1760037002089,1.10856079,120910.0,120900.0,0.82050842]
[1760037002683,1.10856079,120910.0,120900.0,0.40180601]
[1760037002884,0.35595,120910.0,120900.0,0.6498803]
[1760037003081,0.19595,120910.0,120900.0,1.7993603]
[1760037003690,0.19595,120910.0,120900.0,1.7994003]
[1760037004083,0.19595,120910.0,120900.0,1.30325172]
[1760037004389,0.2786065,120910.0,120900.0,1.7994003]
[1760037006491,0.2786065,120910.0,120900.0,1.30325172]
[1760037006682,0.2786065,120910.0,120900.0,1.7994003]
[1760037007791,0.2786065,120910.0,120900.0,1.90296578]
[1760037008088,0.1186065,120910.0,120900.0,1.90296578]
[1760037008288,0.1186065,120910.0,120900.0,1.7994003]
[1760037008884,0.1186065,120910.0,120900.0,1.90295994]
[1760037009191,0.1186065,120910.0,120900.0,1.7994003]
[1760037010190,0.03595,120910.0,120900.0,1.7994003]
[1760037010988,0.03595,120910.0,120900.0,1.0498803]
[1760037011287,0.39675,120930.0,120920.0,0.0826496]
[1760037011592,0.30595,120930.0,120920.0,1.68911818]
[1760037012093,0.30595,120930.0,120920.0,0.93959818]
[1760037012288,0.30595,120930.0,120920.0,1.68911818]
[1760037012686,0.30595,120930.0,120920.0,0.93959818]
[1760037012992,0.30595,120930.0,120920.0,1.68911818]
[1760037013488,0.30595,120930.0,120920.0,1.44104389]
[1760037014286,0.30595,120930.0,120920.0,1.54460631]
[1760037015399,0.30595,120930.0,120920.0,1.55496399]
[1760037016392,0.55402429,120930.0,120920.0,1.55496399]
[1760037016798,0.61510429,120930.0,120920.0,1.55492399]
[1760037017296,0.61510429,120930.0,120920.0,0.80544399]
[1760037017592,0.61510429,120930.0,120920.0,1.81732399]
[1760037018398,0.61510429,120930.0,120920.0,1.5692497]
[1760037018594,0.69774709,120930.0,120920.0,0.8197697]
[1760037018896,1.05854709,120930.0,120920.0,1.2084497]
[1760037019785,0.97590429,120930.0,120920.0,0.9460497]
[1760037019986,0.61510429,120930.0,120920.0,1.09056157]
[1760037020188,0.69774709,120930.0,120920.0,1.09056157]
[1760037022793,0.69774709,120930.0,120920.0,0.09300728]
[1760037022999,0.1796796,120920.0,120910.0,0.0826565]
[1760037023298,1.00590429,120920.0,120910.0,1.09091059]
[1760037023495,0.64510429,120920.0,120910.0,0.34143059]
[1760037023696,0.46510429,120920.0,120910.0,0.69153079]
[1760037023894,0.46510429,120920.0,120910.0,1.44101079]
[1760037024898,0.21703,120920.0,120910.0,1.44201079]
[1760037025100,0.46510429,120920.0,120910.0,1.44201079]
[1760037025298,0.46510429,120920.0,120910.0,0.79622266]
[1760037025493,0.46510429,120920.0,120910.0,1.54570266]
[1760037025699,0.46510429,120920.0,120910.0,1.54570691]
[1760037025898,0.54775389,120920.0,120910.0,1.54570691]
[1760037026400,0.54775389,120920.0,120910.0,1.55632032]
[1760037026600,0.71775389,120920.0,120910.0,0.80684032]
[1760037026799,0.71775389,120920.0,120910.0,1.55632032]
[1760037027794,0.71775389,120920.0,120910.0,1.55532032]
[1760037028999,0.53775389,120920.0,120910.0,1.55532032]
[1760037029391,0.53775389,120920.0,120910.0,1.06824032]
[1760037029594,0.53775389,120920.0,120910.0,1.81772032]
[1760037030304,0.53775389,120920.0,120910.0,1.7140242]
[1760037030603,0.53775389,120920.0,120910.0,1.81876194]
[1760037031102,0.72775389,120920.0,120910.0,1.81876194]
[1760037031303,0.72775389,120920.0,120910.0,1.55636194]
[1760037031491,0.72775389,120920.0,120910.0,0.80688194]
[1760037031691,0.04595,120920.0,120910.0,2.20443623]
[1760037031897,0.03595,120930.0,120920.0,0.0826496]
[1760037032104,0.34595,120930.0,120920.0,1.68907818]
[1760037032300,0.17595,120930.0,120920.0,1.83755228]
[1760037033301,0.17595,120930.0,120920.0,1.68907818]
[1760037033498,0.17595,120930.0,120920.0,0.93959818]
[1760037033699,0.14,120930.0,120920.0,2.08907818]
[1760037033903,0.14,120930.0,120920.0,2.23755228]
[1760037034302,0.14,120930.0,120920.0,1.48907228]
[1760037034499,0.17481,120930.0,120920.0,2.23855228]
[1760037036406,0.17481,120930.0,120920.0,2.09007818]
[1760037037000,0.17481,120930.0,120920.0,4.15455818]
[1760037037300,0.17481,120930.0,120920.0,1.34059818]
[1760037037605,0.17481,120930.0,120920.0,4.15455818]
[1760037037800,0.56526709,120930.0,120920.0,0.4444496]
[1760037038007,0.56526709,120930.0,120920.0,3.14568389]
[1760037039102,0.48262429,120930.0,120920.0,3.14568389]
[1760037040007,0.34262429,120930.0,120920.0,3.14568389]
[1760037040509,0.34262429,120930.0,120920.0,0.33172389]
[1760037040710,0.34262429,120930.0,120920.0,3.14560389]
[1760037041110,0.42526709,120930.0,120920.0,2.8975296]
[1760037041308,0.42526709,120930.0,120920.0,3.29407799]
[1760037041602,0.42526709,120930.0,120920.0,3.48749755]
[1760037041998,0.42526709,120930.0,120920.0,3.33902345]
[1760037042198,0.42526709,120930.0,120920.0,3.48717339]
[1760037042805,0.42526709,120930.0,120920.0,3.29375383]
[1760037043001,1.13526709,120930.0,120920.0,0.14914994]
[1760037043201,1.74414138,120930.0,120920.0,0.14814994]
[1760037043610,1.57901789,120930.0,120920.0,0.89754994]
[1760037043809,0.1174596,120920.0,120910.0,2.21258994]
[1760037044009,1.09928469,120920.0,120910.0,3.04464644]
[1760037044708,1.09928469,120920.0,120910.0,2.8964965]
[1760037045207,1.09928469,120920.0,120910.0,2.1470965]
[1760037045402,1.09928469,120920.0,120910.0,2.8964965]
[1760037046209,1.09928469,120920.0,120910.0,2.1470965]
[1760037046411,1.09928469,120920.0,120910.0,2.8964965]
[1760037047710,1.15547469,120920.0,120910.0,0.8320565]
[1760037048913,0.1749165,120910.0,120900.0,0.21821836]
[1760037049109,0.79594159,120910.0,120900.0,0.30088166]
[1760037049311,0.79594159,120910.0,120900.0,1.05028166]
[1760037049509,1.15674159,120910.0,120900.0,1.05028166]
[1760037049704,0.8257165,120910.0,120900.0,0.30088166]
[1760037050112,1.15674159,120910.0,120900.0,0.15373172]
[1760037050313,1.15674159,120910.0,120900.0,0.07106842]
[1760037050514,1.15674159,120910.0,120900.0,0.70598842]
[1760037050909,1.15674159,120910.0,120900.0,0.80974057]
[1760037051312,1.55674159,120910.0,120900.0,0.17482057]
[1760037051516,1.55674159,120910.0,120900.0,0.55779472]
[1760037051814,1.55674159,120910.0,120900.0,0.45404257]
[1760037052316,1.55674159,120910.0,120900.0,0.55775535]
[1760037053111,1.55674159,120910.0,120900.0,0.45404257]
[1760037053309,1.55674159,120910.0,120900.0,0.55775535]
[1760037053711,1.55674159,120910.0,120900.0,0.00596257]
[1760037053913,1.55674159,120910.0,120900.0,0.75540257]
[1760037054112,1.55674159,120910.0,120900.0,0.85910861]
[1760037054510,1.55674159,120910.0,120900.0,0.75540257]
[1760037054718,1.2257165,120910.0,120900.0,0.75540257]
[1760037054920,1.55674159,120910.0,120900.0,0.75544257]
[1760037055612,1.55674159,120910.0,120900.0,0.00596257]
[1760037055818,1.55674159,120910.0,120900.0,0.75544257]
[1760037061518,0.4649165,120910.0,120900.0,0.83814587]
[1760037061715,0.8257165,120910.0,120900.0,0.85918861]
[1760037061908,1.15674159,120910.0,120900.0,0.85918861]
[1760037063309,1.15674159,120910.0,120900.0,0.75548257]
[1760037063720,1.15674159,120910.0,120900.0,0.00596257]
[1760037063921,1.15674159,120910.0,120900.0,0.75552257]
[1760037065337,1.15674159,120910.0,120900.0,0.00596257]
[1760037065526,1.15674159,120910.0,120900.0,0.75552257]
[1760037066725,1.15674159,120910.0,120900.0,0.00596257]
[1760037066923,1.15674159,120910.0,120900.0,0.75552257]
[1760037067825,1.15674159,120910.0,120900.0,0.00596257]
[1760037068024,1.15674159,120910.0,120900.0,0.83818587]
[1760037070432,1.15674159,120910.0,120900.0,0.75552257]
[1760037072233,1.15674159,120910.0,120900.0,0.00596257]
[1760037072537,1.15674159,120910.0,120900.0,0.83818587]
[1760037072931,1.15674159,120910.0,120900.0,0.00596257]
[1760037073129,1.15674159,120910.0,120900.0,0.75548257]
[1760037074134,1.15674159,120910.0,120900.0,0.00596257]
[1760037074338,1.15674159,120910.0,120900.0,0.83814587]
[1760037074526,0.8257165,120910.0,120900.0,0.83814587]
[1760037074728,0.8257165,120910.0,120900.0,0.41965096]
[1760037074928,0.38226,120910.0,120900.0,1.56917096]
[1760037075132,0.03607,120910.0,120900.0,1.92997096]
[1760037075331,0.1187265,120910.0,120900.0,1.92997096]
[1760037075533,0.1187265,120910.0,120900.0,2.033677]
[1760037078338,0.1187265,120910.0,120900.0,1.92997096]
[1760037080638,0.1187265,120910.0,120900.0,1.18045096]
[1760037080832,0.1187265,120910.0,120900.0,4.1430409]
[1760037081641,0.1187265,120910.0,120900.0,3.99489096]
[1760037082635,0.1187265,120910.0,120900.0,0.84942587]
[1760037082942,0.79892159,120910.0,120900.0,2.82032257]
[1760037083147,1.15972159,120910.0,120900.0,2.82032257]
[1760037083647,1.15972159,120910.0,120900.0,0.00596257]
[1760037083841,1.15972159,120910.0,120900.0,0.75540257]
[1760037084042,1.15972159,120910.0,120900.0,0.90355251]
[1760037084541,1.15972159,120910.0,120900.0,0.15411251]
[1760037084744,1.55972159,120910.0,120900.0,0.90355251]
[1760037084948,1.55972159,120910.0,120900.0,0.75540257]
[1760037086241,1.55972159,120910.0,120900.0,0.8592543]
[1760037086643,1.55972159,120910.0,120900.0,0.1098143]
[1760037086945,1.55972159,120910.0,120900.0,0.00596257]
[1760037087342,1.55972159,120910.0,120900.0,0.26412257]
[1760037087642,1.55972159,120910.0,120900.0,0.36799095]
[1760037087845,1.55972159,120910.0,120900.0,0.10983095]
[1760037088046,1.55972159,120910.0,120900.0,0.75540257]
[1760037090848,1.55972159,120910.0,120900.0,0.85927095]
[1760037091048,1.55972159,120910.0,120900.0,0.85931095]
[1760037091550,1.62494097,120910.0,120900.0,0.75544257]
[1760037093845,1.62494097,120910.0,120900.0,0.00596257]
[1760037094045,1.62494097,120910.0,120900.0,0.68820257]
[1760037094247,1.62494097,120910.0,120900.0,0.75544257]
[1760037102350,1.22494097,120910.0,120900.0,0.75544257]
[1760037104254,0.89391588,120910.0,120900.0,0.00596257]
[1760037104551,1.22494097,120910.0,120900.0,0.75544257]
[1760037105454,1.39061942,120910.0,120900.0,0.00596257]
[1760037105649,0.89391588,120910.0,120900.0,0.75544257]
[1760037105855,1.07704827,120910.0,120900.0,0.75544257]
[1760037106056,0.71624827,120910.0,120900.0,1.19032602]
[1760037106252,1.07704827,120910.0,120900.0,0.94197425]
[1760037106647,0.71624827,120910.0,120900.0,1.34197425]
[1760037106848,1.07704827,120910.0,120900.0,1.25928511]
[1760037108151,1.32540004,120910.0,120900.0,1.25928511]
[1760037108357,1.07704827,120910.0,120900.0,1.25928511]
[1760037108758,1.07704827,120910.0,120900.0,0.50980511]
[1760037108964,1.07704827,120910.0,120900.0,1.25928511]
[1760037109355,1.07704827,120910.0,120900.0,0.50980511]
[1760037109860,1.07704827,120910.0,120900.0,1.25928511]
[1760037110557,1.07704827,120910.0,120900.0,0.50980511]
[1760037110759,1.07704827,120910.0,120900.0,1.25928511]
[1760037111059,1.07704827,120910.0,120900.0,1.15544257]
[1760037111563,1.07704827,120910.0,120900.0,1.25928511]
[1760037111863,1.07704827,120910.0,120900.0,1.15544257]
[1760037112960,1.07704827,120910.0,120900.0,1.23810587]
[1760037113159,1.07704827,120910.0,120900.0,0.73697764]
[1760037113364,0.71624827,120910.0,120900.0,0.84082018]
[1760037113560,0.71624827,120910.0,120900.0,1.59026018]
[1760037113759,0.71624827,120910.0,120900.0,1.59039215]
[1760037114065,0.71624827,120910.0,120900.0,1.34204038]
[1760037114262,0.71624827,120910.0,120900.0,1.23806587]
[1760037114456,0.71624827,120910.0,120900.0,1.48641764]
[1760037115264,0.71624827,120910.0,120900.0,0.48862587]
[1760037115456,0.71624827,120910.0,120900.0,1.48641764]
[1760037117464,0.71624827,120910.0,120900.0,1.59036448]
[1760037118266,0.71624827,120910.0,120900.0,1.48641764]
[1760037118962,0.71624827,120910.0,120900.0,0.73697764]
[1760037119265,0.71624827,120910.0,120900.0,1.48637764]
[1760037120262,0.71624827,120910.0,120900.0,0.73697764]
[1760037120467,0.71624827,120910.0,120900.0,1.48637764]
[1760037124769,0.71624827,120910.0,120900.0,1.48633764]
[1760037125871,0.71624827,120910.0,120900.0,0.98532941]
[1760037125872,0.09607,120910.0,120900.0,0.98532941]
[1760037126165,0.09607,120910.0,120900.0,1.45007625]
[1760037126371,0.36581187,120920.0,120910.0,0.0826565]
[1760037126668,0.69961187,120920.0,120910.0,0.33100827]
[1760037127170,0.69961187,120920.0,120910.0,0.43495511]
[1760037127771,0.36861,120920.0,120910.0,1.18431511]
[1760037128076,0.28316177,120930.0,120920.0,0.0826496]
[1760037128276,0.33481,120930.0,120920.0,0.33100137]
[1760037128569,0.33481,120930.0,120920.0,0.94015314]
[1760037128770,0.33481,120930.0,120920.0,2.08947314]
[1760037128970,0.06481,120930.0,120920.0,2.08947314]
[1760037129172,0.28364177,120940.0,120930.0,0.0826428]
[1760037129364,0.60364177,120940.0,120930.0,0.69179457]
[1760037129560,0.60364177,120940.0,120930.0,0.80569079]
[1760037130368,0.60364177,120940.0,120930.0,0.70186294]
[1760037131065,0.35529,120940.0,120930.0,0.70186294]
[1760037131265,0.35529,120940.0,120930.0,1.5548589]
[1760037131462,0.35529,120940.0,120930.0,3.43627158]
[1760037131665,0.35529,120940.0,120930.0,3.68462335]
[1760037133568,0.35529,120940.0,120930.0,3.58090739]
[1760037134276,0.19529,120940.0,120930.0,3.58090739]
[1760037136072,0.58007777,120940.0,120930.0,0.62215158]
[1760037136274,0.58007777,120940.0,120930.0,3.68434335]
[1760037136472,0.58007777,120940.0,120930.0,3.58062739]
[1760037137269,0.19529,120940.0,120930.0,2.83142739]
[1760037137474,0.19529,120940.0,120930.0,3.58058739]
[1760037137676,0.19529,120940.0,120930.0,2.83142739]
[1760037137877,0.19529,120940.0,120930.0,3.58058739]
[1760037138076,0.19529,120940.0,120930.0,3.68430335]
[1760037138581,0.03529,120940.0,120930.0,3.68430335]
[1760037138973,0.03976,120950.0,120940.0,0.082636]
[1760037139187,0.32976,120950.0,120940.0,0.443436]
[1760037139471,0.32976,120950.0,120940.0,1.68925954]
[1760037140276,0.32976,120950.0,120940.0,2.08925954]
[1760037140675,0.32976,120950.0,120940.0,1.34013954]
[1760037140676,0.10976,120950.0,120940.0,1.34013954]
[1760037140876,0.10976,120950.0,120940.0,3.40465954]
[1760037141078,0.10976,120950.0,120940.0,4.15377954]
[1760037142474,0.10976,120950.0,120940.0,1.34013954]
[1760037142679,0.10976,120950.0,120940.0,4.15365954]
[1760037143280,0.49454087,120950.0,120940.0,0.94715196]
[1760037143482,0.49454087,120950.0,120940.0,3.76063196]
[1760037143684,0.49454087,120950.0,120940.0,3.90526777]
[1760037143979,0.49454087,120950.0,120940.0,3.90522777]
[1760037144979,0.49454087,120950.0,120940.0,3.15618777]
[1760037145174,0.35811177,120950.0,120940.0,3.90522777]
[1760037145380,0.10976,120950.0,120940.0,3.40453954]
[1760037145575,0.10976,120950.0,120940.0,4.15357954]
[1760037146383,0.1923891,120950.0,120940.0,4.15357954]
[1760037146678,0.1923891,120950.0,120940.0,3.90510777]
[1760037147181,0.1223891,120950.0,120940.0,3.90510777]
[1760037147577,0.37074087,120950.0,120940.0,1.09178777]
[1760037147782,0.37074087,120950.0,120940.0,3.90506777]
[1760037147984,0.1223891,120950.0,120940.0,3.90506777]
[1760037148173,0.37074087,120950.0,120940.0,3.90506777]
[1760037148377,0.37074087,120950.0,120940.0,3.656716]
[1760037148582,0.37074087,120950.0,120940.0,4.15341954]
[1760037149484,0.37074087,120950.0,120940.0,3.90506777]
[1760037149678,0.37074087,120950.0,120940.0,3.15606777]
[1760037149884,0.37074087,120950.0,120940.0,3.90502777]
[1760037150589,0.37074087,120950.0,120940.0,3.41846777]
[1760037150778,0.37074087,120950.0,120940.0,4.16742777]
[1760037151180,0.37074087,120950.0,120940.0,1.35418777]
[1760037151483,0.37074087,120950.0,120940.0,4.16738777]
[1760037152483,0.37074087,120950.0,120940.0,3.90498777]
[1760037154184,0.1223891,120950.0,120940.0,4.15329954]
[1760037156086,0.1223891,120950.0,120940.0,3.90494777]
[1760037156785,0.37074087,120950.0,120940.0,3.90494777]
[1760037157379,0.37074087,120950.0,120940.0,3.25974373]
[1760037157584,0.37074087,120950.0,120940.0,4.00858373]
[1760037157780,0.37074087,120950.0,120940.0,3.25966373]
[1760037157981,0.37074087,120950.0,120940.0,4.00858373]
[1760037158381,0.1223891,120950.0,120940.0,4.00858373]
[1760037158586,0.1223891,120950.0,120940.0,4.2569355]
[1760037158781,0.1223891,120950.0,120940.0,3.76023196]
[1760037158986,0.37074087,120950.0,120940.0,4.00858373]
[1760037159188,0.1223891,120950.0,120940.0,4.00858373]
[1760037159483,0.37074087,120950.0,120940.0,4.00858373]
[1760037159685,0.1223891,120950.0,120940.0,4.2569355]
[1760037159880,0.1223891,120950.0,120940.0,3.5080155]
[1760037160080,0.1223891,120950.0,120940.0,4.2568955]
[1760037160587,0.1223891,120950.0,120940.0,4.00854373]
[1760037160889,0.37074087,120950.0,120940.0,3.01131196]
[1760037161184,0.42366087,120950.0,120940.0,3.39939196]
[1760037161493,0.1753091,120950.0,120940.0,3.64774373]
[1760037161789,0.42366087,120950.0,120940.0,3.64774373]
[1760037162287,0.42366087,120950.0,120940.0,3.24774373]
[1760037162487,0.1753091,120950.0,120940.0,3.24774373]
[1760037162690,0.42366087,120950.0,120940.0,3.24774373]
[1760037162889,0.42366087,120950.0,120940.0,0.43470373]
[1760037163088,0.42366087,120950.0,120940.0,3.24770373]
[1760037164084,0.42366087,120950.0,120940.0,3.14398777]
[1760037165493,0.50611123,120950.0,120940.0,2.895636]
[1760037166090,0.168336,120940.0,120930.0,2.58255562]
[1760037166290,0.114596,120940.0,120930.0,3.47975426]
[1760037168685,0.114596,120940.0,120930.0,2.58255562]
[1760037168994,0.114596,120940.0,120930.0,3.66219775]
[1760037169491,0.114596,120940.0,120930.0,3.81060125]
[1760037170192,0.114596,120940.0,120930.0,3.66219775]
[1760037170385,0.03196,120940.0,120930.0,3.81059544]
[1760037170889,0.114596,120940.0,120930.0,3.81059544]
[1760037171091,0.114596,120940.0,120930.0,3.66219775]
[1760037173286,0.03196,120940.0,120930.0,3.66219775]
[1760037173494,0.03196,120940.0,120930.0,3.06175544]
[1760037173694,0.03196,120940.0,120930.0,3.81055544]
[1760037173992,1.14993813,120940.0,120930.0,2.37015331]
[1760037174296,1.14993813,120940.0,120930.0,2.97055562]
[1760037174694,1.14993813,120940.0,120930.0,3.11893545]
[1760037175387,0.78913813,120940.0,120930.0,3.11893545]
[1760037176392,0.78913813,120940.0,120930.0,2.97055562]
[1760037177084,0.458336,120940.0,120930.0,2.97055562]
[1760037178194,0.78913813,120940.0,120930.0,2.97055562]
[1760037178397,0.458336,120940.0,120930.0,2.97055562]
[1760037180096,0.458336,120940.0,120930.0,2.97059562]
[1760037181000,0.458336,120940.0,120930.0,0.15763562]
[1760037181296,0.458336,120940.0,120930.0,2.97063562]
[1760037181792,0.458336,120940.0,120930.0,0.15763562]
[1760037181991,0.458336,120940.0,120930.0,2.97063562]
[1760037182192,0.458336,120940.0,120930.0,2.22183562]
[1760037182491,0.458336,120940.0,120930.0,2.97063562]
[1760037183495,0.78913813,120940.0,120930.0,2.22183562]
[1760037183698,0.78913813,120940.0,120930.0,2.97063562]
[1760037183888,0.78913813,120940.0,120930.0,0.06492445]
[1760037184094,1.09683017,120940.0,120930.0,0.0826428]
[1760037184291,0.76602804,120940.0,120930.0,1.16220493]
[1760037184895,0.76602804,120940.0,120930.0,0.8314428]
[1760037185099,0.76602804,120940.0,120930.0,0.89694674]
[1760037185395,1.09683017,120940.0,120930.0,0.89694674]
[1760037185790,0.76602804,120940.0,120930.0,0.89694674]
[1760037186098,1.09683017,120940.0,120930.0,0.7488]